fUSD/lending_fUSD_20260402
["ID","MTS","AMOUNT","RATE_DAILY","PERIOD"]
[419288669,1775113179975,-500.0,0.00043836,31]
[419288670,1775113180027,-437.94672845,0.00043836,31]
[419288671,1775113180078,-500.0,0.00043836,31]
[419288672,1775113180127,-500.0,0.00043836,31]
[419288673,1775113180179,-674.55595291,0.00043836,31]
[419288674,1775113180231,-674.55595291,0.00043836,31]
[419288675,1775113180282,-674.55595291,0.00043836,31]
[419288676,1775113180333,-674.55595291,0.00043836,31]
[419288677,1775113180384,-674.55595291,0.00043836,31]
[419288678,1775113180436,-500.0,0.00043836,31]
[419288679,1775113180490,-674.55595291,0.00043836,31]
[419288680,1775113180545,-500.0,0.00043836,31]
[419288681,1775113180599,-674.55595291,0.00043836,31]
[419288682,1775113180653,-674.55595291,0.00043836,31]
[419288683,1775113180707,-674.55595291,0.00043836,31]
[419288684,1775113180761,-674.55595291,0.00043836,31]
[419288685,1775113180815,-674.55595291,0.00043836,31]
[419288686,1775113180866,-674.55595291,0.00043836,31]
[419288687,1775113180918,-674.55595291,0.00043836,31]
[419288688,1775113180968,-674.55595291,0.00043836,31]
[419288689,1775113181018,-674.55595291,0.00043836,31]
[419288690,1775113181068,-674.55595291,0.00043836,31]
[419288691,1775113181119,-674.55595291,0.00043836,31]
[419288692,1775113181170,-674.55595291,0.00043836,31]
[419288693,1775113181222,-674.55595283,0.00043836,31]
[419288694,1775113181272,-320.934237,0.00043836,120]
[419288695,1775113181323,-282.324047,0.00043836,120]
[419288696,1775113181375,-320.934237,0.00043836,120]
[419288697,1775113181425,-151.0,0.00043836,120]
[419288698,1775113181475,-320.934237,0.00043836,120]
[419288699,1775113181527,-320.934237,0.00043836,120]
[419288700,1775113181577,-198.556341,0.00043836,120]
[419288701,1775113181627,-1000.0,0.00043861,120]
[419288702,1775113181678,-199.13411391,0.00043885,60]
[419288703,1775113181729,-360580.34708003,0.00043886,30]
[419288704,1775113181779,-50000.0,0.000439,30]
[419288705,1775113181830,-152.0,0.000439,120]
[419288706,1775113181882,-6182.72545119,0.000439,120]
[419288707,1775113181935,-350.0,0.00043943,120]
[419288708,1775113181990,-244.95,0.00043948,120]
[419288709,1775113182043,-410.25,0.00043999,30]
[419288710,1775113182093,-6381.63688596,0.00044,120]
[419288711,1775113182143,-2532.22430252,0.00044,120]
[419288712,1775113182193,-154.22,0.00044,120]
[419288713,1775113182244,-500.17,0.00044,120]
[419288714,1775113182295,-1933.91,0.00044,120]
[419288715,1775113182346,-541.67,0.00044,120]
[419288716,1775113182396,-2514.0364235,0.00044,120]
[419288717,1775113182447,-1641.26,0.00044,30]
[419288718,1775113182497,-1509.66,0.00044,30]
[419288719,1775113182547,-263.76399874,0.00044,120]
[419288720,1775113182598,-300.0,0.00044,120]
[419288721,1775113182654,-244.95,0.00044048,120]
[419288722,1775113182704,-3320.0,0.0004408,120]
[419288723,1775113182756,-3320.0,0.0004408,120]
[419288724,1775113182810,-3320.0,0.0004409,120]
[419288725,1775113182862,-3320.0,0.0004409,120]
[419288726,1775113182914,-3320.0,0.0004409,120]
[419288727,1775113183183,-3327.26,0.0004409,120]
[419288728,1775113183236,-3320.0,0.000441,120]
[419288729,1775113183291,-3320.0,0.000441,120]
[419288730,1775113183344,-3320.0,0.000441,120]
[419288731,1775113183398,-3320.0,0.000441,120]
[419288732,1775113183452,-3500.0,0.00044109,120]
[419288733,1775113183508,-244.95,0.00044148,120]
[419288734,1775113183563,-301.19,0.00044228,30]
[419288735,1775113183619,-9174.4354,0.00044235,30]
[419288736,1775113183675,-244.95,0.00044248,120]
[419288737,1775113183731,-244.95,0.00044348,120]
[419288738,1775113183785,-194.0,0.00044354,120]
[419288739,1775113183838,-194.0,0.00044354,120]
[419288740,1775113183890,-194.0,0.00044364,120]
[419288741,1775113183945,-194.0,0.00044364,120]
[419288742,1775113183998,-194.0,0.00044364,120]
[419288743,1775113184050,-199.73,0.00044364,120]
[419288744,1775113184103,-194.0,0.00044374,120]
[419288745,1775113184155,-194.0,0.00044374,120]
[419288746,1775113184210,-194.0,0.00044374,120]
[419288747,1775113184262,-194.0,0.00044374,120]
[419288748,1775113184315,-4000.0,0.00044383,120]
[419288749,1775113184367,-150.0,0.00044402,120]
[419288750,1775113184417,-150.0,0.00044427,120]
[419288751,1775113184469,-150.0,0.00044436,120]
[419288752,1775113184522,-756.84,0.00044444,120]
[419288753,1775113184575,-244.95,0.00044448,120]
[419288754,1775113184631,-150.0,0.00044461,120]
[419288755,1775113184685,-500.0,0.00044475,120]
[419288756,1775113184739,-350.0,0.00044491,120]
[419288757,1775113184795,-10000.0,0.000445,30]
[419288758,1775113184848,-50000.0,0.000445,30]
[419288759,1775113184903,-1972.59,0.000445,120]
[419288760,1775113184959,-552.52,0.000445,120]
[419288761,1775113185015,-151.82705297,0.000445,30]
[419288762,1775113185069,-120000.0,0.000445,55]
[419288763,1775113185123,-120000.0,0.000445,60]
[419288764,1775113185178,-120000.0,0.000445,65]
[419288765,1775113185233,-120000.0,0.000445,70]
[419288766,1775113185286,-120000.0,0.000445,75]
[419288767,1775113185336,-1409.2026653,0.000445,120]
[419288768,1775113185386,-300.0,0.000445,120]
[419288769,1775113185438,-320.934237,0.000445,120]
[419288770,1775113185490,-320.934237,0.000445,120]
[419288771,1775113185539,-178.51291,0.000445,120]
[419288772,1775113185590,-320.934237,0.000445,120]
[419288773,1775113185641,-320.934245,0.000445,120]
[419288774,1775113185693,-150.0,0.00044513,120]
[419288775,1775113185749,-10040.08936901,0.00044532,120]
[419288776,1775113185805,-244.95,0.00044548,120]
[419288777,1775113185860,-150.0,0.0004455,120]
[419288778,1775113185913,-150.0,0.0004455,120]
[419288779,1775113185966,-150.0,0.0004455,120]
[419288780,1775113186022,-300.0,0.0004455,120]
[419288781,1775113186076,-300.0,0.0004455,120]
[419288782,1775113186128,-334.24581164,0.00044585,120]
[419288783,1775113186180,-2291.780084,0.000446,120]
[419288784,1775113186233,-154.0,0.000446,120]
[419288785,1775113186286,-5000.0,0.000446,90]
[419288786,1775113186337,-1817.0,0.000446,90]
[419288787,1775113186392,-150.0,0.00044608,120]
[419288788,1775113186446,-244.95,0.00044648,120]
[419288789,1775113186500,-150.0,0.00044655,120]
[419288790,1775113186554,-4500.0,0.00044657,120]
[419288791,1775113186607,-150.0,0.00044705,120]
[419288792,1775113186661,-203.815742,0.00044715,120]
[419288793,1775113186715,-26800.31883554,0.00044727,90]
[419288794,1775113186768,-2100.0,0.00044744,31]
[419288795,1775113186824,-244.95,0.00044748,120]
[419288796,1775113186877,-150.0,0.00044782,120]
[419288797,1775113186931,-16935.47192967,0.000448,120]
[419288798,1775113186984,-8095.0888984,0.000448,30]
[419288799,1775113187038,-1214.4852699,0.000448,120]
[419288800,1775113187093,-250.0,0.00044821,103]
[419288801,1775113187145,-250.0,0.00044822,120]
[419288802,1775113187198,-250.0,0.00044822,120]
[419288803,1775113187250,-250.0,0.00044822,120]
[419288804,1775113187302,-250.0,0.00044822,120]
[419288805,1775113187354,-250.0,0.00044822,120]
[419288806,1775113187408,-250.0,0.00044822,120]
[419288807,1775113187462,-250.0,0.00044822,120]
[419288808,1775113187515,-250.0,0.00044822,120]
[419288809,1775113187569,-358.79,0.00044822,120]
[419288810,1775113187626,-150.0,0.00044824,120]
[419288811,1775113187683,-244.95,0.00044848,120]
[419288812,1775113187737,-269.7,0.00044855,120]
[419288813,1775113187790,-150.0,0.00044857,120]
[419288814,1775113187842,-30000.0,0.00044865,120]
[419288815,1775113187897,-6393.32,0.00044875,120]
[419288816,1775113187950,-30000.0,0.00044885,120]
[419288817,1775113188003,-151.0,0.00044885,60]
[419288818,1775113188056,-1034.60765392,0.0004489,120]
[419288819,1775113188110,-400.0,0.0004489,120]
[419288820,1775113188163,-109978.64,0.00044899,120]
[419288821,1775113188216,-402.89041584,0.000449,120]
[419288822,1775113188271,-145091.39101521,0.000449,44]
[419288823,1775113188325,-4322191.77957327,0.000449,120]
[419288839,1775113809268,7304.19093536,9.5e-05,3]
[419288841,1775113832216,-250.0,0.00013,2]
[419288842,1775113832226,-566.0,0.000135,2]
[419288843,1775113832236,-150.0,0.00013699,2]
[419288844,1775113832245,-2440.64743151,0.00013718,2]
[419288845,1775113832255,-206.020955,0.00014,2]
[419288846,1775113832264,-166.66,0.00014178,2]
[419288847,1775113832274,-300.0,0.00014299,2]
[419288848,1775113832284,-2500.0,0.000143,2]
[419288849,1775113832294,-2500.0,0.000143,2]
[419288850,1775113832304,-2500.0,0.000143,2]
[419288851,1775113832313,-2500.0,0.000143,2]
[419288852,1775113832323,-300.0,0.000143,2]
[419288853,1775113832333,-300.0,0.000143,2]
[419288854,1775113832343,-500.0,0.000143,2]
[419288855,1775113832352,-504.34724751,0.000143,2]
[419288856,1775113832362,-166.66,0.00014477,2]
[419288857,1775113832371,-406.0,0.00014548,2]
[419288858,1775113832381,-2000.0,0.00014551,2]
[419288859,1775113832391,-1519.14,0.00014575,2]
[419288860,1775113832401,-883.21,0.00014577,2]
[419288861,1775113832410,-166.66,0.00014775,2]
[419288862,1775113832420,-200.0,0.0001498,2]
[419288863,1775113832430,-452.88132844,0.00015,2]
[419288864,1775113832439,-322.73,0.00015012,2]
[419288865,1775113832449,-166.66,0.00015074,2]
[419288866,1775113832458,-1600.0,0.00015132,2]
[419288867,1775113832467,-184.33317864,0.00015336,2]
[419288868,1775113832477,-166.66,0.00015372,2]
[419288869,1775113832487,-495.97,0.00015604,2]
[419288870,1775113832496,-420.0,0.00015661,2]
[419288871,1775113832506,-166.66,0.00015671,2]
[419288872,1775113832515,-4371.7356,0.00015697,2]
[419288873,1775113832525,-1000.0,0.000157,2]
[419288874,1775113832535,-150.0,0.000157,2]
[419288875,1775113832544,-1200.0,0.000157,5]
[419288876,1775113832554,-153.37386469,0.0001579,2]
[419288877,1775113832564,-500.0,0.00015796,2]
[419288878,1775113832574,-500.0,0.00015796,2]
[419288879,1775113832583,-500.0,0.00015796,2]
[419288880,1775113832593,-500.0,0.00015796,2]
[419288881,1775113832607,-167.59079829,0.00015796,2]
[419288882,1775113832618,-75031.54990226,0.00015797,2]
[419288883,1775113832631,-7605.11481162,0.00015797,2]
[419288884,1775113832643,-556.77693843,0.00015797,2]
[419288890,1775113838257,-2429.01164769,0.00015797,2]
[419288891,1775113838269,-507.49281571,0.00015797,2]
[419288892,1775113838426,-1512.18117517,0.00015797,2]
[419288893,1775113838436,-2500.0,0.000158,5]
[419288894,1775113838446,-485.02003771,0.00015873,2]
[419288908,1775113840684,-15.5115507,0.00015873,2]
[419288909,1775113840695,-500.0,0.00015873,2]
[419288910,1775113840706,-225.42759078,0.00015873,2]
[419288911,1775113840717,-46.73085852,0.00015873,2]
[419288912,1775113840745,-453.26914148,0.00015873,2]
[419288913,1775113840754,-492.78345913,0.00015873,2]
[419288914,1775113841084,-7.21654087,0.00015873,2]
[419288915,1775113841093,-252.18251098,0.00015873,2]
[419288924,1775113843279,-250.01833023,0.00015873,2]
[419288925,1775113843289,-423.31273557,0.00015873,2]
[419288926,1775113843338,-76.68726443,0.00015873,2]
[419288927,1775113843348,-181.83603731,0.00015873,2]
[419288928,1775113843358,-285.96128421,0.00015873,2]
[419288929,1775113843367,-122.17541405,0.00015873,2]
[419288930,1775113843398,-56.92458595,0.00015873,2]
[419288931,1775113843408,-179.1,0.00015873,2]
[419288932,1775113843418,-179.1,0.00015873,2]
[419288933,1775113843428,-147.27535405,0.00015873,2]
[419288934,1775113843440,-31.82464595,0.00015873,2]
[419288935,1775113843450,-179.1,0.00015873,2]
[419288936,1775113843459,-134.07535405,0.00015873,2]
[419288938,1775113846127,-367.41500196,0.00015873,2]
[419288939,1775113846138,-500.91934026,0.00015873,2]
[419288940,1775113846147,-500.45908735,0.00015873,2]
[419288941,1775113846158,-500.0,0.00015873,2]
[419288942,1775113846167,-178.65465846,0.00015873,2]
[419288943,1775113846179,-500.0,0.00015873,2]
[419288944,1775113846188,-501.21167731,0.00015873,2]
[419288945,1775113846199,-500.0,0.00015873,2]
[419288946,1775113846209,-500.0,0.00015873,2]
[419288947,1775113846218,-500.0,0.00015873,2]
[419288948,1775113846228,-500.0,0.00015873,2]
[419288949,1775113846238,-500.0,0.00015873,2]
[419288950,1775113846251,-495.97,0.00015878,2]
[419288951,1775113846261,-151.0,0.00015894,2]
[419288952,1775113846271,-568.78770185,0.00015896,2]
[419288953,1775113846280,-411.27981483,0.00015896,2]
[419288954,1775113846290,-500.0,0.00015896,2]
[419288955,1775113846301,-500.0,0.00015896,2]
[419288956,1775113846311,-500.0,0.00015896,2]
[419288957,1775113846321,-500.0,0.00015896,2]
[419288958,1775113846330,-552.98800587,0.00015896,2]
[419288959,1775113846340,-609.05074951,0.00015896,2]
[419288960,1775113846350,-500.0,0.00015896,2]
[419288961,1775113846359,-500.0,0.00015896,2]
[419288962,1775113846368,-500.0,0.00015896,2]
[419288963,1775113846378,-500.0,0.00015896,2]
[419288964,1775113846387,-7892.83831972,0.00015897,2]
[419288965,1775113846522,-22800.74922998,0.00015897,2]
[419288966,1775113846582,-491.65400287,0.00015897,2]
[419288981,1775114239692,1452.53822246,9e-05,4]
[419288985,1775114570023,150.38,7.423e-05,2]
[419289008,1775115032255,-636.65095903,0.00012263,2]
[419289009,1775115032288,-104.74904097,0.00012263,2]
[419289010,1775115032297,-250.0,0.00013,2]
[419289011,1775115032307,-237.11898787,0.000135,2]
[419289012,1775115032318,-329.88101213,0.000135,2]
[419289013,1775115032328,-526.20581479,0.00014491,2]
[419289014,1775115032339,-725.62418521,0.00014491,2]
[419289015,1775115032350,-152.55,0.00014574,2]
[419289016,1775115032359,-1235.43043729,0.00014682,2]
[419289017,1775115032416,-494.08956271,0.00014682,2]
[419289018,1775115032426,-2537.77359649,0.00014766,2]
[419289019,1775115032484,-178.35640351,0.00014766,2]
[419289020,1775115032494,-150.38,0.00014847,2]
[419289021,1775115032504,-171.41,0.00014905,2]
[419289022,1775115032515,-163.49543567,0.00014928,2]
[419289023,1775115032526,-200.0,0.00014953,2]
[419289024,1775115032535,-1500.0,0.0001499,2]
[419289025,1775115032545,-300.0,0.00014994,2]
[419289026,1775115032555,-215.16,0.00014995,2]
[419289027,1775115032565,-216.0,0.00015,2]
[419289028,1775115032575,-300.0,0.00015,2]
[419289029,1775115032585,-238.18,0.00015095,2]
[419289030,1775115032595,-238.18,0.00015095,2]
[419289031,1775115032605,-238.18,0.00015095,2]
[419289032,1775115032615,-238.18,0.00015095,2]
[419289033,1775115032625,-7511.02,0.00015095,2]
[419289034,1775115032635,-2442.67593656,0.00015095,2]
[419289035,1775115032648,-262.02687277,0.00015095,2]
[419289036,1775115032659,-4806.31719067,0.00015095,2]
[419289037,1775115032669,-7568.86582668,0.00015105,2]
[419289041,1775115038398,-238.2,0.00015095,2]
[419289042,1775115038409,-345.416603,0.00015104,2]
[419289043,1775115038419,-500.0,0.00015104,2]
[419289044,1775115038428,-398.1513913,0.00015104,2]
[419289045,1775115038438,-500.0,0.00015104,2]
[419289046,1775115038449,-549.40417812,0.00015104,2]
[419289047,1775115038459,-515.9785268,0.00015104,2]
[419289048,1775115038470,-500.0,0.00015104,2]
[419289049,1775115038481,-500.0,0.00015104,2]
[419289050,1775115038492,-500.0,0.00015104,2]
[419289051,1775115038501,-500.0,0.00015104,2]
[419289052,1775115038511,-240.84342203,0.00015104,2]
[419289053,1775115038521,-305227.33363794,0.00015105,2]
[419289054,1775115038582,-1578.47991722,0.00015105,2]
[419289055,1775115038596,-1738.835448,0.00015105,2]
[419289056,1775115038608,-1337.35,0.00015105,2]
[419289057,1775115038620,-436.75223375,0.00015105,2]
[419289058,1775115038631,-1033.56296967,0.00015105,2]
[419289059,1775115038642,-431.69598331,0.00015105,2]
[419289060,1775115038873,-999.8506,0.00015105,2]
[419289061,1775115038884,-1000.51193,0.00015105,2]
[419289062,1775115038895,-13820.33477592,0.00015105,2]
[419289063,1775115038907,-3150.75,0.00015105,2]
[419289064,1775115038919,-310.07901199,0.00015105,2]
[419289065,1775115038930,-14438.60567993,0.00015105,2]
[419289066,1775115038962,-2020.26213503,0.00015105,2]
[419289067,1775115038974,-993.71667762,0.00015105,2]
[419289068,1775115038986,-1164.20361154,0.00015105,2]
[419289078,1775115042320,-1037.86913247,0.00015105,2]
[419289079,1775115042331,-1043.95488759,0.00015105,2]
[419289080,1775115042360,-265.1286,0.00015105,2]
[419289081,1775115042371,-265.96,0.00015105,2]
[419289082,1775115042503,-316071.49014134,0.00015105,2]
[419289083,1775115042512,-4527.91,0.0001511,2]
[419289084,1775115042522,-10000.0,0.00015205,2]
[419289085,1775115042531,-219.43030367,0.0001531,2]
[419289086,1775115042540,-1729.52,0.00015416,2]
[419289087,1775115042550,-174.79667568,0.00015422,2]
[419289088,1775115042559,-314.2848253,0.00015422,2]
[419289089,1775115042567,-166.66,0.00015495,2]
[419289090,1775115042576,-155.19,0.00015507,2]
[419289091,1775115042586,-200.0,0.000156,5]
[419289092,1775115042596,-316.41725967,0.00015653,2]
[419289093,1775115042607,-3028.51647066,0.00015697,2]
[419289094,1775115042616,-173.20012352,0.00015697,2]
[419289095,1775115042626,-468.27579115,0.00015697,2]
[419289096,1775115042634,-1000.0,0.000157,5]
[419289097,1775115042645,-500.0,0.000157,5]
[419289098,1775115042656,-1571.0,0.0001572,2]
[419289099,1775115042669,-171.41,0.00015733,2]
[419289100,1775115042679,-9221.26883546,0.0001574,2]
[419289101,1775115042688,-808.12830727,0.00015767,2]
[419289102,1775115042698,-159.91138824,0.00015773,2]
[419289103,1775115042708,-182.99266599,0.00015773,2]
[419289104,1775115042717,-500.0,0.00015773,2]
[419289105,1775115042727,-500.0,0.00015773,2]
[419289106,1775115042736,-322.68974958,0.00015782,2]
[419289107,1775115042746,-3532.01720899,0.00015792,2]
[419289108,1775115042755,-9778.8139,0.00015792,2]
[419289109,1775115042764,-752804.6652,0.00015792,2]
[419289110,1775115042773,-1000.0,0.00015797,2]
[419289111,1775115042781,-337.97256879,0.00015797,2]
[419289112,1775115042792,-150.0,0.000158,2]
[419289113,1775115042801,-2100.0,0.000158,5]
[419289114,1775115042811,-700.0,0.000158,5]
[419289115,1775115042820,-2500.0,0.000158,2]
[419289116,1775115042829,-500.0,0.00015873,2]
[419289117,1775115042838,-474.26742554,0.00015873,2]
[419289118,1775115042847,-261.35,0.0001589,2]
[419289119,1775115042858,-684.19,0.0001589,2]
[419289120,1775115042867,-137245.4246643,0.00015892,2]
[419289121,1775115042877,-170.6153057,0.00015892,2]
[419289122,1775115042886,-155.19,0.00015895,2]
[419289123,1775115042896,-500.0,0.00015896,2]
[419289124,1775115042906,-515.24152418,0.00015896,2]
[419289125,1775115042915,-176.20537316,0.00015897,2]
[419289126,1775115042925,-198.06220285,0.00015897,2]
[419289127,1775115042935,-1000.0,0.00015897,2]
[419289128,1775115042946,-351.357,0.00015897,2]
[419289129,1775115042955,-200.0,0.00015897,2]
[419289130,1775115042964,-500.0,0.00015899,2]
[419289131,1775115042973,-500.0,0.00015899,2]
[419289132,1775115042983,-467.61263072,0.00015899,2]
[419289134,1775115042992,-500.0,0.00015899,2]
[419289136,1775115043002,-500.0,0.00015899,2]
[419289138,1775115043011,-503.87158945,0.00015899,2]
[419289140,1775115043021,-500.0,0.00015899,2]
[419289141,1775115043030,-500.0,0.00015899,2]
[419289142,1775115043039,-500.0,0.00015899,2]
[419289143,1775115043049,-500.0,0.00015899,2]
[419289144,1775115043059,-500.0,0.00015899,2]
[419289145,1775115043068,-408.80395629,0.00015899,2]
[419289146,1775115043078,-822.43648828,0.000159,2]
[419289147,1775115043087,-5000.0,0.000159,2]
[419289148,1775115043097,-3200.0,0.000159,5]
[419289149,1775115043107,-1000.0,0.000159,5]
[419289150,1775115043116,-15779.79709209,0.000159,2]
[419289151,1775115043126,-214.36442557,0.000159,2]
[419289152,1775115043135,-162.0,0.00015941,2]
[419289153,1775115043145,-500.70581269,0.0001597,2]
[419289154,1775115043154,-700.0,0.0001597,2]
[419289155,1775115043164,-700.0,0.0001597,2]
[419289156,1775115043173,-1230.89693021,0.0001597,2]
[419289157,1775115043183,-359.66331739,0.00015973,2]
[419289158,1775115043192,-224.28659877,0.00015973,2]
[419289159,1775115043202,-500.0,0.00015973,2]
[419289160,1775115043211,-500.0,0.00015973,2]
[419289161,1775115043220,-500.0,0.00015973,2]
[419289162,1775115043230,-500.0,0.00015973,2]
[419289163,1775115043239,-500.0,0.00015973,2]
[419289164,1775115043250,-275.47720931,0.00015973,2]
[419289165,1775115043259,-500.0,0.00015973,2]
[419289166,1775115043268,-228.8503993,0.00015984,2]
[419289167,1775115043278,-160.98899848,0.00015984,2]
[419289168,1775115043287,-151.0,0.00015997,2]
[419289169,1775115043296,-155.0,0.00015999,2]
[419289170,1775115043306,-1090.37665391,0.00015999,5]
[419289171,1775115043315,-500.0,0.00015999,2]
[419289172,1775115043324,-500.0,0.00015999,2]
[419289173,1775115043334,-500.0,0.00015999,2]
[419289174,1775115043344,-511.55890723,0.00015999,2]
[419289175,1775115043353,-500.0,0.00015999,2]
[419289176,1775115043362,-504.67776346,0.00015999,2]
[419289177,1775115043371,-500.0,0.00015999,2]
[419289178,1775115043381,-500.0,0.00015999,2]
[419289179,1775115043390,-500.0,0.00015999,2]
[419289180,1775115043399,-506.6761321,0.00015999,2]
[419289181,1775115043409,-500.0,0.00015999,2]
[419289182,1775115043418,-504.54419002,0.00015999,2]
[419289183,1775115043428,-507.16627596,0.00015999,2]
[419289184,1775115043437,-513.61262372,0.00015999,2]
[419289185,1775115043447,-500.0,0.00015999,2]
[419289186,1775115043456,-519.17533645,0.00015999,2]
[419289187,1775115043466,-500.0,0.00015999,2]
[419289188,1775115043475,-500.0,0.00015999,2]
[419289189,1775115043484,-500.0,0.00015999,2]
[419289190,1775115043494,-500.0,0.00015999,2]
[419289191,1775115043503,-500.0,0.00015999,2]
[419289192,1775115043513,-500.0,0.00015999,2]
[419289193,1775115043522,-500.0,0.00015999,2]
[419289194,1775115043531,-500.0,0.00015999,2]
[419289195,1775115043540,-512.16689272,0.00015999,2]
[419289196,1775115043550,-2766.0,0.00016,5]
[419289197,1775115043560,-2776.0,0.00016,5]
[419289198,1775115043570,-522946.52538208,0.00016,2]
[419289199,1775115043665,-46030.68312961,0.00016,2]
[419289200,1775115043675,-174899.03091747,0.00016,2]
[419289201,1775115043686,-623.50272771,0.00016,2]
[419289202,1775115043697,-41520.99072666,0.00016,2]
[419289203,1775115043708,-333.26194966,0.00016,2]
[419289213,1775115044531,-1163.69555954,0.00016,2]
[419289215,1775115046244,-90739.35440116,0.00016,2]
[419289216,1775115046607,-318.66950495,0.00015104,2]
[419289217,1775115046616,-200.0,0.00015104,2]
[419289218,1775115046626,-482.62144166,0.00015104,2]
[419289219,1775115046635,-31919.95991206,0.00016,2]
[419289220,1775115046690,-136.517768,0.00016,2]
[419289221,1775115046747,-8673.63144002,0.00016,2]
[419290654,1775116233378,-567.6544,0.000135,2]
[419290655,1775116233388,-166.66,0.00013699,2]
[419290656,1775116233397,-15.35589931,0.00013971,2]
[419290657,1775116233409,-151.30410069,0.00013971,2]
[419290658,1775116233419,-166.66,0.00014244,2]
[419290659,1775116233429,-166.66,0.00014516,2]
[419290660,1775116233440,-200.0,0.00014549,2]
[419290661,1775116233450,-166.66,0.00014789,2]
[419290662,1775116233459,-759.87220332,0.000148,5]
[419290663,1775116233471,-1040.12779668,0.000148,5]
[419290664,1775116233480,-1600.0,0.00014801,2]
[419290665,1775116233489,-1200.0,0.00014849,2]
[419290666,1775116233500,-300.0,0.00014899,2]
[419290667,1775116233509,-300.0,0.00014899,2]
[419290668,1775116233519,-559.87334313,0.000149,5]
[419290669,1775116233574,-3140.12665687,0.000149,5]
[419290670,1775116233585,-150.0,0.00014904,2]
[419290671,1775116233594,-323.96409726,0.00014904,2]
[419290672,1775116233604,-500.0,0.00014904,2]
[419290673,1775116233614,-500.0,0.00014904,2]
[419290675,1775116233623,-500.0,0.00014904,2]
[419290677,1775116233632,-335.92579917,0.00014904,2]
[419290679,1775116233642,-533.56054872,0.00014904,2]
[419290681,1775116233650,-500.0,0.00014904,2]
[419290683,1775116233660,-500.0,0.00014904,2]
[419290685,1775116233669,-500.0,0.00014904,2]
[419290686,1775116233678,-116.42289798,0.00014904,2]
[419290689,1775116233690,-494.81541003,0.00014904,2]
[419290691,1775116233700,-287.18458997,0.00014905,2]
[419290693,1775116233712,-572.10404063,0.00014905,2]
[419290696,1775116233722,-140.64596437,0.00014905,2]
[419290708,1775116234102,-1744.98701204,0.00014905,2]
[419290709,1775116234114,-487.38503545,0.00014905,2]
[419290710,1775116234125,-231.47798814,0.00014905,2]
[419290711,1775116234134,-153.74130846,0.00014905,2]
[419290712,1775116234143,-170.34174306,0.00014905,2]
[419290714,1775116237574,-2542.91899349,0.00014905,2]
[419290715,1775116237588,-570.19619841,0.00014905,2]
[419290716,1775116237599,-617.55464156,0.00014905,2]
[419290717,1775116237639,-252.39667944,0.00014905,2]
[419290718,1775116237799,-1413.19234318,0.00014905,2]
[419290719,1775116237810,-1933.51006069,0.00014905,2]
[419290720,1775116237820,-5000.0,0.00014905,2]
[419290721,1775116237831,-218.8668,0.00014905,2]
[419290722,1775116237841,-2500.0,0.00014905,2]
[419290723,1775116237851,-23071.43079613,0.00014905,2]
[419290724,1775116237863,-500.0,0.00014905,2]
[419290725,1775116237875,-4537.55298167,0.00014905,2]
[419290726,1775116238026,-5057.31371581,0.00014905,2]
[419290727,1775116238039,-11501.19376746,0.00014905,2]
[419290728,1775116238081,-901.16,0.00014905,2]
[419290730,1775116238094,-670.35707093,0.00014905,2]
[419290732,1775116238106,-331.39424204,0.00014905,2]
[419290737,1775116240129,-706234.26262596,0.00014905,2]
[419290738,1775116240139,-500.30491238,0.00014973,2]